Cogmind - Beta 15 *** ADVENTURER MODE // 2025.09.14 @ 23:27:57 Player: Gen Result: Destroyed by D-53 Grenadier with Mini Grenade Launcher Performance ------------- Evolutions (1) 500 Regions Visited (3) 600 Robots Destroyed (65) 325 Value Destroyed (1784) 1784 Prototype IDs (3) 60 Alien Tech Used (0) 0 Bonus (0) 0 TOTAL SCORE: 3269 Bonus ------- None Cogmind --------- Core Integrity 0/400 Matter 287/300 Energy 70/100 System Corruption 0% Temperature Cool (53) Movement Walking (260) Ox2 Location -9/Mines Parts ------- > --- POWER (2) -------- (None) > --- PROPULSION (3) --- Carbon-fiber Leg Carbon-fiber Leg > --- UTILITY (2) ------ Huge Storage Unit Improved Sensor Array > --- WEAPON (2) ------- (None) > --- INVENTORY (25) --- Light Treads Aluminum Leg Aluminum Leg Compact Wheel Improved Hover Unit Improved Hover Unit Heat Sink Visual Processing Unit Signal Interpreter Signal Interpreter Terrain Scanner Tractor Beam Shock Rifle Beam Rifle Spread Laser Heavy Assault Rifle Plasma Cutter Hammer Mining Claw Mining Claw Peak State ------------ > --- POWER ------------ Light Nuclear Core > --- PROPULSION ------- Carbon-fiber Leg Carbon-fiber Leg Carbon-fiber Leg > --- UTILITY ---------- Huge Storage Unit Improved Sensor Array > --- WEAPON ----------- Shock Rifle Beam Rifle > --- INVENTORY -------- Backup Power I Light Treads Light Treads Aluminum Leg Aluminum Leg Compact Wheel Improved Hover Unit Improved Hover Unit Improved Hover Unit Heat Sink Visual Processing Unit Signal Interpreter Terrain Scanner Seismic Detector Light Armor Plating Shield Generator Tractor Beam Shock Rifle Particle Gun Light Assault Rifle Heavy Assault Rifle Hammer Mining Claw Mining Claw [Rating: 24] Favorites ----------- Power Light Nuclear Core Engine Improved Ion Engine Power Core Light Nuclear Core Propulsion Carbon-fiber Leg Treads Light Treads Leg Carbon-fiber Leg Wheel Wheel Hover Unit Improved Hover Unit Flight Unit Flight Unit Utility Huge Storage Unit Device Improved Sensor Array Storage Huge Storage Unit Protection Light Armor Plating Weapon Particle Gun Energy Gun Particle Gun Ballistic Gun Light Assault Rifle Ballistic Cannon Light Cannon Launcher Rocket Launcher Special Weapon Mining Laser Impact Weapon Hammer Slashing Weapon Mining Claw Build | -11 -10 -9 -9 ------- Run | Yrd Mat Mat Min Slots Evolved 2 | . . 2 . Power 1 | . . 1 . Propulsion 1 | . . 1 . Utility . | . . . . Weapon . | . . . . Parts Attached 51 | 10 13 26 2 Power 5 | 1 . 4 . Engine 4 | 1 . 3 . Core 1 | . . 1 . Reactor . | . . . . Propulsion 19 | 4 5 10 . Treads 2 | . . 2 . Leg 7 | 2 . 5 . Wheel 5 | 2 3 . . Hover 4 | . 1 3 . Flight 1 | . 1 . . Utility 10 | 2 4 4 . Device 5 | 2 2 1 . Storage 2 | . 2 . . Processor . | . . . . Hackware . | . . . . Protection 3 | . . 3 . Artifact . | . . . . Weapon 17 | 3 4 8 2 Energy Gun 6 | . 1 5 . Energy Cannon . | . . . . Ballistic Gun 4 | 2 . 2 . Ballistic Cannon 1 | . 1 . . Launcher 1 | . . . 1 Special Weapon 2 | 1 . . 1 Impact Weapon 1 | . . 1 . Slashing Weapon 2 | . 2 . . Piercing Weapon . | . . . . Special Melee Weapon . | . . . . Unidentified Prototypes . | . . . . Parts Lost 12 | . 2 6 4 Power 5 | . 1 3 1 Propulsion 2 | . . 1 1 Utility 1 | . . 1 . Weapon 4 | . 1 1 2 Highest Loss Streak 4 | . 1 3 4 To Critical Strikes . | . . . . Average Backups 14 | 2 9 17 19 Power . | . . . . Propulsion 3 | 1 2 4 6 Utility 5 | . 5 6 6 Weapon 3 | . 1 4 6 Tool/Special . | . . . . Unused Backups 6 | . . 2 4 Power 1 | . . 1 . Propulsion . | . . . . Utility 5 | . . 1 4 Weapon . | . . . . Tool/Special . | . . . . Average Slot Usage (%) 93 | . 97 91 88 Engine 9 | . 12 7 11 Core 4 | . . 7 . Treads 2 | . . 4 . Leg 12 | . 2 15 33 Wheel 9 | . 23 3 . Hover 5 | . . 8 . Device 8 | . 15 4 11 Storage 11 | . 12 11 11 Protection 4 | . . 6 . Energy Gun 12 | . 6 15 17 Ballistic Gun 6 | . 10 4 . Ballistic Cannon 2 | . 7 . . Peak Build Rating 24 | 7 9 24 21 Average Rating 14 | 4 8 18 20 On Entrance 9 | . 7 8 21 Naked Turns . | . . . . Heaviest Build 105 | 8 90 105 89 Greatest Support 45 | 20 32 45 45 Greatest Overweight (x) 29 | . 29 7 1 Average Overweight (x) 2 | . 3 2 1 Largest Inventory Capacity 25 | 5 25 25 25 Average Capacity 23 | 5 23 25 25 Most Carried 25 | 4 17 25 20 Average Carried 14 | 2 9 17 19 Final Capacity 25 | 5 25 25 25 Final Carried 20 | 3 9 19 20 Class Distribution -------------------- 89% | Mutant 10% | Scavenger-Mutant Dominant Class ---------------- Mutant | -10/Materials Mutant | -9/Materials Mutant | -9/Mines Resources | -11 -10 -9 -9 ----------- Run | Yrd Mat Mat Min Matter Collected 1214 | 292 421 481 20 Remotely . | . . . . Salvage Created 2288 | 107 429 1696 56 Parts 147 | 9 30 99 9 Haulers Intercepted . | . . . . Recyclers Shooed 1 | . . 1 . Parts Field Recycled . | . . . . Retrieved Matter . | . . . . Parts Self-Destructed . | . . . . Prevented . | . . . . Kills | -11 -10 -9 -9 ------- Run | Yrd Mat Mat Min Combat Hostiles Destroyed 50 | 1 13 31 5 Guns 38 | 1 8 27 2 Cannons 8 | . 5 3 . AOE 4 | . . 1 3 Classes Destroyed 12 | 3 3 5 1 Worker 2 | 1 1 . . Builder 1 | . 1 . . Tunneler 3 | 3 . . . Recycler 2 | . . 2 . Mechanic 1 | . . 1 . Operator 1 | . . 1 . Watcher 7 | . 2 5 . Swarmer 9 | . 6 . 3 Grunt 27 | 1 7 19 . Brawler 3 | . . 3 . Sentry 9 | . . 9 . Assembled 2 | . . . 2 Best Kill Streak 5 | 2 3 4 5 Combat Bots Only 5 | 1 3 4 5 Max Kills in Single Turn 2 | 1 2 2 2 Gunslinging 1 | . 1 1 . Exploded 2 | . . 1 2 Melee . | . . . . Uniques/NPCs Destroyed . | . . . . Combat | -11 -10 -9 -9 -------- Run | Yrd Mat Mat Min Hostile Shots Fired 259 | 6 40 183 30 Missed 75 | 1 11 52 11 Hits 184 | 5 29 131 19 Melee 1 | . . . 1 Projectile 183 | 5 29 131 18 AOE 6 | . . . 6 Critical Strikes 4 | . . 4 . Damage Taken 2153 | 42 349 1384 378 Core 467 | 9 55 315 88 Absorbed by Shields . | . . . . Ignored by Resistances 630 | 14 104 404 108 Regen/Repaired (Parts) 139 | . 21 118 . Core Remaining (%) 85 | 96 74 . . Volleys Fired 203 | 19 44 132 8 Largest 2 | 2 2 2 2 Hottest 121 | 120 120 121 115 Shots Fired 333 | 21 71 229 12 Gun 288 | 20 49 210 9 Cannon 40 | . 21 19 . Launcher 3 | . . . 3 Special 2 | 1 1 . . Kinetic 180 | 20 54 106 . Thermal 114 | 1 17 95 1 Explosive 3 | . . . 3 Electromagnetic 36 | . . 28 8 Robot Hit Streak 17 | 5 9 17 6 Robot Miss Streak 5 | 2 5 3 1 Penetration Max . | . . . . Secondary Targets 3 | . 2 1 . Max Gunslinging Chain 1 | . 1 1 . Shots Hit Robots 217 | 15 38 155 9 Core Hits 112 | 6 22 74 10 Critical Kills . | . . . . Critical Parts Destroyed . | . . . . Critical Strikes 3 | . 1 2 . Burn 2 | . . 2 . Blast 1 | . 1 . . Melee Attacks 17 | . 17 . . Impact . | . . . . Slashing 17 | . 17 . . Piercing . | . . . . Sneak Attacks . | . . . . Combat Hostiles . | . . . . Follow-up Attacks . | . . . . Damage Inflicted 3172 | 195 589 2128 260 Guns 2527 | 195 377 1851 104 Cannons 385 | . 148 237 . Explosions 260 | . 64 40 156 Melee . | . . . . Ramming . | . . . . Kinetic 1547 | 195 414 938 . Thermal 1062 | . 175 866 21 Explosive 135 | . . . 135 Electromagnetic 428 | . . 324 104 Impact . | . . . . Slashing . | . . . . Piercing . | . . . . Highest Corruption . | . . . . Average Corruption . | . . . . Corruption Purged . | . . . . Corruption Blocked . | . . . . Overload Shots . | . . . . Overflow Damage 2 | . . 2 . Projectiles 2 | . . 2 . Explosions . | . . . . Melee . | . . . . Knockbacks 1 | . 1 . . Impact . | . . . . Kinetic 1 | . 1 . . Secondary . | . . . . Self-Inflicted Damage 103 | . 77 . 26 Shots 2 | . 1 . 1 Rammed . | . . . . Targets Rammed . | . . . . Kicked . | . . . . Crushed . | . . . . Highest Temperature 444 | 20 111 444 54 Average Temperature 100 | 9 31 109 28 Received Heat Transfer 916 | 30 138 708 40 Effects 7 | . . 7 . Shutdowns 5 | . . 5 . Energy Bleed 2 | . . 2 . Siege Activations . | . . . . Martial Activations . | . . . . Shielding Activations . | . . . . Robots Disrupted . | . . . . Combat Hostiles . | . . . . Robots Corrupted . | . . . . Combat Hostiles . | . . . . Parts Fried . | . . . . Impact Corruptions . | . . . . Robots Melted . | . . . . Combat Hostiles . | . . . . Parts Melted 2 | . . 2 . Heat Transferred 2337 | . 309 2028 . Parts Sabotaged . | . . . . Parts Stolen . | . . . . Parts Stripped . | . . . . Power Chain Reactions 2 | . . 1 1 Alert | -11 -10 -9 -9 ------- Run | Yrd Mat Mat Min Maximum Alert Level . | . . . . Low Security (%) 100 | 100 100 100 100 Level 1 . | . . . . Level 2 . | . . . . Level 3 . | . . . . Level 4 . | . . . . Level 5 . | . . . . High Security . | . . . . Max Security . | . . . . Peak Influence 184 | 20 100 184 60 Initial . | . . . . Average 23 | 1 17 29 7 Influence Increases 1492 | 40 447 923 82 Destroy 0b10 Robot/C 960 | 20 260 620 60 Destroy 0b10 Robot/NC 85 | 20 20 45 . Destroy Leader 264 | . 54 200 10 Successful Hack 26 | . 24 2 . Disable Machine 27 | . 9 18 . Destroy Structure 55 | . 35 8 12 Lose Combat Pursuer 75 | . 45 30 . Influence Decreases 1470 | 40 447 923 60 Time Decay 1218 | 40 349 809 20 Lost Part 90 | . 10 40 40 Purge Threat 162 | . 88 74 . Squads Dispatched 7 | . 2 5 . Investigation 4 | . 2 2 . Extermination . | . . . . Reinforcement 3 | . . 3 . Assault . | . . . . Garrison . | . . . . Intercept . | . . . . Searches Triggered . | . . . . Construction Impeded . | . . . . Haulers Reinforced . | . . . . Active Scanning Responses . | . . . . Cargo Convoy Interrupts . | . . . . Stealth | -11 -10 -9 -9 --------- Run | Yrd Mat Mat Min Distress Signals 2 | . . 2 . Communications Jammed . | . . . . Distress Signals . | . . . . Times Spotted 78 | 1 19 41 17 Peak Tracking Total 21 | 1 3 4 21 Tactical Retreats 5 | . 3 2 . Traps | -11 -10 -9 -9 ------- Run | Yrd Mat Mat Min Traps Triggered 2 | . 2 . . Indirectly . | . . . . Trap Hack Attempts . | . . . . Triggered . | . . . . Disarmed . | . . . . Reprogrammed . | . . . . Reused . | . . . . Traps Extracted . | . . . . Installed . | . . . . Triggered . | . . . . Machines | -11 -10 -9 -9 ---------- Run | Yrd Mat Mat Min Machines Disabled 3 | . 1 2 . Max in Single Turn 1 | . 1 1 . Machines Repaired . | . . . . Machines Dismantled . | . . . . Machines Sabotaged . | . . . . Overloaded Fab Kills . | . . . . Hacking | -11 -10 -9 -9 --------- Run | Yrd Mat Mat Min Machines Accessed 17 | . 9 8 . Terminals 10 | . 6 4 . Fabricators . | . . . . Repair Stations 2 | . 1 1 . Recycling Units 3 | . 2 1 . Scanalyzers 2 | . . 2 . Garrison Access . | . . . . Total Hacks 59 | . 35 24 . Successful 43 | . 25 18 . Failed 16 | . 10 6 . Catastrophic 1 | . 1 . . Database Lockouts . | . . . . Manual 1 | . . 1 . Terminals 33 | . 22 11 . Fabricators . | . . . . Repair Stations 7 | . 3 4 . Recycling Units 15 | . 10 5 . Scanalyzers 4 | . . 4 . Garrison Access . | . . . . Terminal Hacks 20 | . 14 6 . Record 7 | . 4 3 . Robot Analysis 1 | . 1 . . Prototype ID Bank 1 | . 1 . . Emergency Access Points 1 | . 1 . . Alert Level 2 | . 2 . . Unreport Threat 2 | . 1 1 . Dispatch Records 1 | . 1 . . Transport Status 1 | . 1 . . Reinforcement Status 1 | . 1 . . Assault Status 1 | . . 1 . Zone Layout 2 | . 1 1 . Fabricator Hacks . | . . . . Repair Station Hacks 6 | . 3 3 . Scan Component 2 | . 1 1 . Repair 2 | . 1 1 . Refit 2 | . 1 1 . Recycling Unit Hacks 13 | . 8 5 . Recycle Component 7 | . 3 4 . Process 3 | . 2 1 . Report Inventory 2 | . 2 . . Retrieve Matter 1 | . 1 . . Scanalyzer 4 | . . 4 . Insert Component 3 | . . 3 . Analyze 1 | . . 1 . Garrison Access Hacks . | . . . . Unauthorized Hacks . | . . . . Terminals . | . . . . Fabricators . | . . . . Repair Stations . | . . . . Recycling Units . | . . . . Scanalyzers . | . . . . Garrison Access . | . . . . Data Cores Recovered . | . . . . Used . | . . . . Hacking Detections 14 | . 6 8 . Full Trace Events 6 | . 3 3 . Feedback Events . | . . . . Feedback Blocked . | . . . . Robot Schematics Acquired . | . . . . Robots Built . | . . . . Authchips . | . . . . Time . | . . . . Total Robot Build Rating . | . . . . Part Schematics Acquired 1 | . . 1 . Parts Built . | . . . . Authchips . | . . . . Time . | . . . . Total Part Build Rating . | . . . . Parts Repaired 2 | . 1 1 . Time 52 | . 26 26 . Parts Recycled 7 | . 3 4 . Recycled Matter 403 | . 186 217 . Retrieved Matter 184 | . 184 . . Retrieved Components . | . . . . Parts Scanalyzed 1 | . . 1 . Part Schematics Acquired 1 | . . 1 . Parts Damaged . | . . . . Bothacking | -11 -10 -9 -9 ------------ Run | Yrd Mat Mat Min Used RIF Installer . | . . . . Robots Hacked . | . . . . Non-combat . | . . . . Combat . | . . . . Robot Hacks Applied . | . . . . Relay Couplers Released . | . . . . Fabnet Peak Effective % . | . . . . Robots Rewired . | . . . . Allies Hacked . | . . . . Hacks Repelled . | . . . . Allies | -11 -10 -9 -9 -------- Run | Yrd Mat Mat Min Total Allies . | . . . . Largest Group . | . . . . Highest-Rated Group . | . . . . Highest-Rated Ally . | . . . . Total Orders . | . . . . Ally Attacks . | . . . . Total Damage . | . . . . Kills . | . . . . Allies Corrupted . | . . . . Allies Melted . | . . . . Intel | -11 -10 -9 -9 ------- Run | Yrd Mat Mat Min Active Infowar (turns) 3078 | 85 1390 1395 208 Sensors 2728 | . 1125 1395 208 Terrain 212 | . 212 . . Seismic 210 | 85 125 . . Robot Analysis Total 1 | . 1 . . Derelict Logs Recovered 1 | . . . 1 Drone Launches . | . . . . Drone Recoveries . | . . . . Exploration | -11 -10 -9 -9 ------------- Run | Yrd Mat Mat Min Turns Passed 5143 | 271 1390 3274 208 Spaces Moved 2236 | 184 813 1148 91 Core 24 | 19 5 . . Treads 153 | . . 153 . Legs 863 | 157 88 527 91 Wheels 942 | 8 720 214 . Hover 254 | . . 254 . Flight . | . . . . Fastest Speed 50 | 50 120 130 190 Average Speed 197 | 111 144 248 190 Slowest Speed 1500 | 120 1500 481 190 Overloaded Moves . | . . . . Propulsion Burnouts . | . . . . Robots Hopped . | . . . . Potential Cave-ins 8 | . 8 . . Cave-ins Triggered . | . . . . Exploration Rate (%) 52 | 8 80 85 36 Regions Visited 3 Branch Regions 1 Pre-discovered Areas 1 | . . . 1 Known Exits Taken . | . . . . Unknown Exits Taken 3 | 1 1 1 . Scrap Searched . | . . . . Spaces Dug 11 | . 11 . . Terrain Destroyed 65 | . 47 2 16 Melee 11 | . 11 . . Projectile 1 | . 1 . . AOE 53 | . 35 2 16 Terrain Rammed . | . . . . Walls Destroyed . | . . . . Machines Disabled . | . . . . Actions | -11 -10 -9 -9 --------- Run | Yrd Mat Mat Min Total 2608 | 229 920 1345 114 Wait 17 | 1 . 4 12 Move 2233 | 183 812 1147 91 Hop . | . . . . Pick Up 57 | 10 18 28 1 Fast Attach . | . . . . Attach 21 | 11 2 8 . Detach 5 | 4 1 . . Swap 45 | 1 22 20 2 Drop 14 | . 8 6 . Fire 203 | 19 44 132 8 Melee 13 | . 13 . . Ram . | . . . . Kick . | . . . . Crush . | . . . . Escape Stasis . | . . . . Rewire . | . . . . Trap . | . . . . Miscellaneous . | . . . . Route ------- -11/Scrapyard -10/Materials (discovered 5 exits: *Mat x3 / [*Min] / [*Sub]) -9/Materials (discovered 5 exits: [*Mat x2] / [*Min] / [*Sto x2]) -9/Mines (discovered 2 exits: [*Mat] / [*Zio]) History --------- Turn | Location | Event 2 | -11/Scrapyard | Met Revision 17 123 | -11/Scrapyard | Discovered new exit (range 8) 272 | -11/Scrapyard | Entered Materials 311 | -10/Materials | Build established: Mutant 548 | -10/Materials | Discovered new exit (range 13) 591 | -10/Materials | Discovered new exit (range 14) 898 | -10/Materials | Discovered new exit (range 4) 921 | -10/Materials | Discovered new exit (range 11) 1368 | -10/Materials | Discovered new exit (range 8) 1384 | -10/Materials | Repaired Lgt. Ion Engine? 1662 | -10/Materials | Entered another Materials area 1662 | -9/Materials | Evolved 2 slots: Power x1, Propulsion x1 1797 | -9/Materials | Lost 3 parts (1n1u1w) 1922 | -9/Materials | Repaired Lgt. Cannon? 2259 | -9/Materials | Discovered new exit (range 4) 2312 | -9/Materials | Core integrity fell below 50% 2628 | -9/Materials | Build established: Scavenger-Mutant 2669 | -9/Materials | Discovered new exit (range 8) 3152 | -9/Materials | Build established: Mutant 3718 | -9/Materials | Discovered new exit (range 13) 3760 | -9/Materials | Discovered new exit (range 10) 4025 | -9/Materials | Discovered new exit (range 15) 4936 | -9/Materials | Entered Mines 4937 | -9/Mines | A Derelict revealed a hidden shortcut to a safe place 4940 | -9/Mines | Learned location of Storage (-9) 5044 | -9/Mines | Received a Rocket Launcher from a helpful Derelict 5062 | -9/Mines | Discovered new exit (range 15) 5124 | -9/Mines | Assembled infested the area 5133 | -9/Mines | Core integrity fell below 20% 5144 | -9/Mines | Destroyed by D-53 Grenadier with Mini Grenade Launcher Last Messages --------------- 05136_ R-06 Scavenger collects Flight Unit. [Achievement: Hunted] The achievement interface (ESC then open Records) offers an effective way to explore all of your earned achievements as well as seek out new goals for future runs. 05136_ as-98442 destroyed. 05136_ as-21124 destroyed. 05137_ R-06 Scavenger destroyed. 05141_ Carbon-fiber Leg destroyed. 05142_ as-94140 destroyed. 05142_ as-81012 destroyed. 05142_ Rocket Launcher destroyed. 05143_ as-99058 destroyed. 05143_ as-94714 destroyed. 05143_ Backup Power I destroyed. 05143_ Shock Rifle destroyed. 05143_ as-90309 destroyed. 05143_ as-83266 destroyed. [Achievement: First Step to Greatness] Map ----- +----------------------------------------------------+ | ????????????????????????????????? ### #? | | ??????????????????????????????????? ## #### #? | | ????????????????????????????????????# ## #??# #? | | ?????????????????????????????????????# #??# #? | | ?????????????????????????????????????# #??# #? | | ????????????????????????????????????## ####??# #? | | ????????????????????????????????????# #?????# #? | | ???????????????????????????????????## ##????# ## | | ???????????????????????????????????# ###### | | ???????????????????????????????????## ##### | | ????????????????????????????????????#### ## | | ???????????????????????????????????????#### # | | ??????????????????????????????????????????## # | | ??????????????????????????????????????????## ## | | ????????????????????????????####??????##### # | | ???????????????????????????? ## # | | ????????????????????????????# #??###### ## # | | ????????????????????????????# #???????# #### # | | ????????????????????????????# ##??????####???# # | | ????????????????????????????# ##???????####?# # | | ????????????????????######### ######### ## # | | ???????????????????## # # | | ??????????????????## | | ????????????????### %[ ####### | | ????????????????# ! ##???### | | ???????????????# @ ###???## | | ???????????????# % d ###### | | ??????????????#a % d | | ???????????? a # % | | ??????????? [ aa ## # ##### | | ????????????=% # # ?# ? # #???# < | | ???????????? % ?####u ??##?###### ##??? | | ???????????? ###?????## #??????????####??? | | ???????????????????????## #????????????????# # | | ????????????????????????? ?????????????????# # | | ????????????????????????? ?????????????????## | | ????????????????????????? ??????????????????## | | ?????????????????????????#???????????????????## | | ??????????????????????????????????????????????## | | ???????????????????????????????????????????????? | | ???????????????????????????????????????????????? | | ????????????????????????????????????????????????# | | ?????????????????????????????????????????????????# | | ?????????????????????????????????????????????????? | | ?????????????????????????????????????????????????? | | ?????????????????????????????????????????????????? | | ?????????????????????????????????????????????????? | | ?????????????????????????????????????????????????? | | ?????????????????????????????????????????????????? | | ?????????????????????????????????????????????????? | +----------------------------------------------------+ Best States ------------- Heat Dissipation 35 Energy Generation 21 Energy Capacity 430 Matter Stores 300 Matter Capacity 300 Sight Range 16 Robot Scan Range 15 Terrain Scan Range 14 Terrain Scan Density 10 Armor Coverage 225 Resistance: KI 20 Resistance: TH 20 Resistance: EX 20 Resistance: EM 20 Resistance: I 20 Resistance: S 20 Resistance: P 20 Utility Shielding 33 Evasion (%) 55 Recoil Reduction 2 Offensive Hacking 10 Item Schematics ----------------- Lgt. Assault Rifle | -9/Materials | Scanalyzed Robot Schematics ------------------ None Fabricated ------------ Nothing Repaired ---------- Lgt. Ion Engine | 47% | -10/Materials Lgt. Cannon | 1% | -9/Materials Alien Tech Used ----------------- None Achievements -------------- Crack Shot Everything Is Under Control First Step to Greatness Hunted Novice Programmer One Hack Too Far Part-time Excavator Part-time Mechanic Safety First Storm Trooper Uninvited Guest Challenges ------------ None Game ------ Seed NodeFissionMount Manual? 0 Play Time 00:50:17 Cumulative 0.7 hours Start 2025.09.14 @ 22:35:03 End 2025.09.14 @ 23:27:57 Sessions 1 Manual Loads 0 Difficulty Adventurer Special Mode None Game No. 1 Rogue 0 Adventurer 1 Explorer 0 Win Type - Total 0 Types 0/0/0/0/0/0/0/0/0/0 Lore% 0 Gallery% 2 Achievement% 4 Wizard Run 0 Options --------- Layout 1 ASCII 0 Keyboard 0 Movement Mouse Keybinds 0 Fullscreen 2 Font 24/Smallcaps Map View 25x17 Zoom Use 85% Tactical HUD 1 Map Filters NONE Filters NONE Steam 1 RUN: ec24341f-81dc-45f9-a9f2-6c9630965002